Cogmind - Beta 15 @@@ ROGUE MODE // 2025.05.30 @ 20:24:31 Player: Elias Result: Self-destructed Performance ------------- Evolutions (2) 1000 Regions Visited (5) 1000 Robots Destroyed (23) 115 Value Destroyed (445) 445 Prototype IDs (2) 40 Alien Tech Used (0) 0 Bonus (0) 0 TOTAL SCORE: 2600 Bonus ------- None Cogmind --------- Core Integrity 440/550 Matter 281/300 Energy 100/100 System Corruption 1% Temperature Cool (9) Movement Walking (260) Ox2 Location -8/Materials Parts ------- > --- POWER (1) -------- (None) > --- PROPULSION (4) --- Aluminum Leg > --- UTILITY (4) ------ Large Storage Unit Seismic Detector Improved Targeting Computer > --- WEAPON (2) ------- Beam Rifle > --- INVENTORY (15) --- Light Ion Engine Deuterium Engine Light Deuterium Engine Carbon-fiber Leg Medium Matter Pod (32) Trap Scanner Sensor Array Improved Shield Generator Hacking Suite Medium Laser Assault Rifle Shock Bomb Launcher Datajack Maul Peak State ------------ > --- POWER ------------ Ion Engine > --- PROPULSION ------- Aluminum Leg Aluminum Leg Aluminum Leg Aluminum Leg > --- UTILITY ---------- Large Storage Unit Seismic Detector Improved Targeting Computer Light Armor Plating > --- WEAPON ----------- Medium Laser Shock Bomb Launcher > --- INVENTORY -------- Light Ion Engine Deuterium Engine Light Deuterium Engine Carbon-fiber Leg Medium Matter Pod Trap Scanner Improved Shield Generator Hacking Suite Beam Rifle Assault Rifle Shock Bomb Launcher Datajack Maul [Rating: 17] Favorites ----------- Power Ion Engine Engine Ion Engine Propulsion Light Treads Treads Light Treads Leg Aluminum Leg Utility Seismic Detector Device Seismic Detector Storage Small Storage Unit Processor Improved Targeting Computer Protection Light Armor Plating Weapon Assault Rifle Energy Gun Medium Laser Ballistic Gun Assault Rifle Launcher Shock Bomb Launcher Build | -11 -10 -10 -10 -9 -8 ------- Run | Yrd Mat Min Exi Min Mat Slots Evolved 4 | . . . . . 4 Power . | . . . . . . Propulsion 2 | . . . . . 2 Utility 2 | . . . . . 2 Weapon . | . . . . . . Parts Attached 18 | 7 2 . 1 2 6 Power 2 | 1 1 . . . . Engine 2 | 1 1 . . . . Core . | . . . . . . Reactor . | . . . . . . Propulsion 6 | 2 . . . 2 2 Treads 2 | 2 . . . . . Leg 4 | . . . . 2 2 Wheel . | . . . . . . Hover . | . . . . . . Flight . | . . . . . . Utility 5 | 2 . . 1 . 2 Device 1 | 1 . . . . . Storage 2 | 1 . . 1 . . Processor 1 | . . . . . 1 Hackware . | . . . . . . Protection 1 | . . . . . 1 Artifact . | . . . . . . Weapon 5 | 2 1 . . . 2 Energy Gun 3 | 1 1 . . . 1 Energy Cannon . | . . . . . . Ballistic Gun 1 | 1 . . . . . Ballistic Cannon . | . . . . . . Launcher 1 | . . . . . 1 Special Weapon . | . . . . . . Impact Weapon . | . . . . . . Slashing Weapon . | . . . . . . Piercing Weapon . | . . . . . . Special Melee Weapon . | . . . . . . Unidentified Prototypes . | . . . . . . Parts Lost 6 | . . . . . 6 Power 1 | . . . . . 1 Propulsion 3 | . . . . . 3 Utility 1 | . . . . . 1 Weapon 1 | . . . . . 1 Highest Loss Streak 5 | . . . . . 5 To Critical Strikes . | . . . . . . Average Backups 8 | 5 7 7 8 8 11 Power 1 | 1 1 1 1 1 2 Propulsion 1 | 2 2 2 2 1 . Utility 2 | . 1 2 3 3 4 Weapon 1 | 1 1 1 1 1 3 Tool/Special . | . . . . . . Unused Backups 14 | . 1 . . . 13 Power 3 | . . . . . 3 Propulsion 2 | . 1 . . . 1 Utility 5 | . . . . . 5 Weapon 3 | . . . . . 3 Tool/Special 1 | . . . . . 1 Average Slot Usage (%) 97 | . 97 100 100 100 87 Engine 12 | . 13 14 14 14 7 Treads 18 | . 27 28 28 11 . Leg 10 | . . . . 16 31 Device 12 | . 13 14 14 14 9 Storage 13 | . 14 14 14 14 9 Processor 1 | . . . . . 8 Energy Gun 13 | . 14 14 14 14 9 Ballistic Gun 12 | . 14 14 14 14 3 Peak Build Rating 17 | 7 8 8 8 8 17 Average Rating 8 | 5 7 7 8 7 14 On Entrance 6 | . 7 7 8 8 8 Naked Turns . | . . . . . . Heaviest Build 37 | 12 15 15 30 30 37 Greatest Support 40 | 40 40 40 40 40 40 Greatest Overweight (x) 3 | . 3 . . 1 1 Average Overweight (x) . | . . . . . . Largest Inventory Capacity 15 | 8 8 8 15 15 15 Average Capacity 11 | 7 8 8 9 15 15 Most Carried 14 | 8 8 8 8 9 14 Average Carried 8 | 5 7 7 8 8 12 Final Capacity 15 | 8 8 8 15 15 15 Final Carried 14 | 8 7 8 8 9 14 Class Distribution -------------------- 92% | Mutant 7% | Scavenger-Mutant Dominant Class ---------------- Mutant | -10/Materials Mutant | -10/Mines Mutant | -10/Exiles Mutant | -9/Mines Mutant | -8/Materials Resources | -11 -10 -10 -10 -9 -8 ----------- Run | Yrd Mat Min Exi Min Mat Matter Collected 596 | 239 39 38 . 185 95 Remotely . | . . . . . . Salvage Created 655 | 111 72 . . 125 347 Parts 63 | 13 8 . . 8 34 Haulers Intercepted . | . . . . . . Recyclers Shooed . | . . . . . . Parts Field Recycled . | . . . . . . Retrieved Matter . | . . . . . . Parts Self-Destructed . | . . . . . . Prevented . | . . . . . . Kills | -11 -10 -10 -10 -9 -8 ------- Run | Yrd Mat Min Exi Min Mat Combat Hostiles Destroyed 13 | . 3 . . 3 7 Guns 7 | . 3 . . 3 1 AOE 6 | . . . . . 6 Classes Destroyed 9 | 3 2 . . 2 2 Worker 3 | 2 . . . . 1 Builder 3 | . . . . . 3 Tunneler 2 | 2 . . . . . Recycler 1 | 1 . . . . . Operator 1 | . 1 . . . . Swarmer 6 | . 3 . . . 3 Grunt 5 | . . . . 2 3 Duelist 1 | . . . . 1 . Sentry 1 | . . . . . 1 Best Kill Streak 6 | 3 3 . . 3 6 Combat Bots Only 4 | . 3 . . 3 4 Max Kills in Single Turn 5 | 1 1 . . 1 5 Gunslinging . | . . . . . . Exploded 3 | . . . . . 3 Melee . | . . . . . . Uniques/NPCs Destroyed . | . . . . . . Combat | -11 -10 -10 -10 -9 -8 -------- Run | Yrd Mat Min Exi Min Mat Hostile Shots Fired 85 | . 20 . . 23 42 Missed 27 | . 4 . . 5 18 Hits 58 | . 16 . . 18 24 Melee 4 | . . . . 4 . Projectile 54 | . 16 . . 14 24 Critical Strikes 1 | . . . . 1 . Damage Taken 1179 | . 132 . . 290 757 Core 167 | . 22 . . 35 110 Absorbed by Shields . | . . . . . . Core Remaining (%) 88 | 100 . . . 77 . Volleys Fired 48 | 6 14 . . 10 18 Largest 2 | 2 2 . . 2 2 Hottest 92 | 60 70 . . 70 92 Shots Fired 92 | 12 28 . . 17 35 Gun 77 | 12 28 . . 17 20 Cannon . | . . . . . . Launcher 15 | . . . . . 15 Special . | . . . . . . Kinetic 30 | 6 14 . . 8 2 Thermal 47 | 6 14 . . 9 18 Explosive . | . . . . . . Electromagnetic 15 | . . . . . 15 Robot Hit Streak 22 | 4 3 . . 10 22 Robot Miss Streak 4 | 1 4 . . 1 2 Penetration Max . | . . . . . . Secondary Targets 2 | . 1 . . 1 . Max Gunslinging Chain 1 | . 1 . . 1 . Shots Hit Robots 60 | 7 14 . . 15 24 Core Hits 36 | 6 6 . . 7 17 Critical Kills . | . . . . . . Critical Parts Destroyed . | . . . . . . Critical Strikes 1 | . . . . . 1 Burn 1 | . . . . . 1 Melee Attacks . | . . . . . . Impact . | . . . . . . Slashing . | . . . . . . Piercing . | . . . . . . Sneak Attacks . | . . . . . . Combat Hostiles . | . . . . . . Follow-up Attacks . | . . . . . . Damage Inflicted 1259 | 93 166 . . 200 800 Guns 645 | 93 166 . . 200 186 Cannons . | . . . . . . Explosions 613 | . . . . . 613 Melee . | . . . . . . Ramming 1 | . . . . . 1 Kinetic 245 | 39 108 . . 85 13 Thermal 498 | 54 58 . . 115 271 Explosive 24 | . . . . . 24 Electromagnetic 491 | . . . . . 491 Impact . | . . . . . . Slashing . | . . . . . . Piercing . | . . . . . . Highest Corruption 1 | . 1 1 1 1 1 Average Corruption 1 | . 1 1 1 1 1 Corruption Purged . | . . . . . . Corruption Blocked . | . . . . . . Effects 10 | . 2 2 2 3 1 Message Errors 5 | . . 1 1 2 1 Matter Fused 2 | . 1 1 . . . Energy Discharges 1 | . . . 1 . . Data Loss (minor) 1 | . 1 . . . . Weapon Failures 1 | . . . . 1 . Overload Shots . | . . . . . . Overflow Damage . | . . . . . . Projectiles . | . . . . . . Explosions . | . . . . . . Melee . | . . . . . . Knockbacks . | . . . . . . Impact . | . . . . . . Kinetic . | . . . . . . Secondary . | . . . . . . Self-Inflicted Damage 18 | . . . . . 18 Shots 2 | . . . . . 2 Rammed . | . . . . . . Targets Rammed 1 | . . . . . 1 Kicked 1 | . . . . . 1 Crushed . | . . . . . . Highest Temperature 108 | . . . . 108 60 Average Temperature 29 | . . . . 48 16 Received Heat Transfer 174 | . . . . 84 90 Siege Activations . | . . . . . . Martial Activations . | . . . . . . Shielding Activations . | . . . . . . Robots Disrupted . | . . . . . . Combat Hostiles . | . . . . . . Robots Corrupted . | . . . . . . Combat Hostiles . | . . . . . . Parts Fried . | . . . . . . Impact Corruptions . | . . . . . . Robots Melted . | . . . . . . Combat Hostiles . | . . . . . . Parts Melted 2 | . . . . . 2 Heat Transferred 1250 | 125 137 . . 333 655 Parts Sabotaged . | . . . . . . Parts Stolen . | . . . . . . Parts Stripped . | . . . . . . Power Chain Reactions 3 | . . . . . 3 Alert | -11 -10 -10 -10 -9 -8 ------- Run | Yrd Mat Min Exi Min Mat Maximum Alert Level 1 | . . . . . 1 Low Security (%) 96 | 100 100 100 . 100 84 Level 1 3 | . . . . . 15 Level 2 . | . . . . . . Level 3 . | . . . . . . Level 4 . | . . . . . . Level 5 . | . . . . . . High Security . | . . . . . . Max Security . | . . . . . . Peak Influence 241 | 10 71 7 . 60 241 Initial 7 | . . 7 . . . Average 29 | . 15 . . 10 104 Influence Increases 552 | 25 81 . . 70 376 Destroy 0b10 Robot/C 260 | . 60 . . 60 140 Destroy 0b10 Robot/NC 50 | 25 5 . . . 20 Destroy Leader 50 | . 10 . . 10 30 Successful Hack 5 | . 5 . . . . Disable Machine 45 | . . . . . 45 Destroy Structure 52 | . 1 . . . 51 Lose Combat Pursuer 90 | . . . . . 90 Influence Decreases 346 | 25 60 21 . 70 170 Entered New Map 14 | . . 14 . . . Time Decay 272 | 25 60 7 . 70 110 Lost Part 60 | . . . . . 60 Squads Dispatched 5 | . 1 . . . 4 Investigation . | . . . . . . Extermination . | . . . . . . Reinforcement 5 | . 1 . . . 4 Assault . | . . . . . . Garrison . | . . . . . . Intercept . | . . . . . . Searches Triggered . | . . . . . . Construction Impeded 1 | . . . . . 1 Haulers Reinforced . | . . . . . . Active Scanning Responses . | . . . . . . Cargo Convoy Interrupts . | . . . . . . Stealth | -11 -10 -10 -10 -9 -8 --------- Run | Yrd Mat Min Exi Min Mat Distress Signals 1 | . . . . . 1 Communications Jammed . | . . . . . . Distress Signals . | . . . . . . Times Spotted 26 | . 8 . . 3 15 Peak Tracking Total 4 | . 4 . . 3 3 Tactical Retreats 4 | . . . . . 4 Traps | -11 -10 -10 -10 -9 -8 ------- Run | Yrd Mat Min Exi Min Mat Traps Triggered 3 | . 3 . . . . Indirectly . | . . . . . . Trap Hack Attempts . | . . . . . . Triggered . | . . . . . . Disarmed . | . . . . . . Reprogrammed . | . . . . . . Reused . | . . . . . . Traps Extracted . | . . . . . . Installed . | . . . . . . Triggered . | . . . . . . Machines | -11 -10 -10 -10 -9 -8 ---------- Run | Yrd Mat Min Exi Min Mat Machines Disabled 3 | . . . . . 3 Max in Single Turn 2 | . . . . . 2 Machines Repaired . | . . . . . . Machines Dismantled . | . . . . . . Machines Sabotaged . | . . . . . . Overloaded Fab Kills . | . . . . . . Hacking | -11 -10 -10 -10 -9 -8 --------- Run | Yrd Mat Min Exi Min Mat Machines Accessed 2 | . 2 . . . . Terminals 2 | . 2 . . . . Fabricators . | . . . . . . Repair Stations . | . . . . . . Recycling Units . | . . . . . . Scanalyzers . | . . . . . . Garrison Access . | . . . . . . Total Hacks 4 | . 4 . . . . Successful 3 | . 3 . . . . Failed 1 | . 1 . . . . Catastrophic . | . . . . . . Database Lockouts . | . . . . . . Manual . | . . . . . . Terminals 4 | . 4 . . . . Fabricators . | . . . . . . Repair Stations . | . . . . . . Recycling Units . | . . . . . . Scanalyzers . | . . . . . . Garrison Access . | . . . . . . Terminal Hacks 3 | . 3 . . . . Prototype ID Bank 1 | . 1 . . . . Transport Status 1 | . 1 . . . . Hauler Manifests 1 | . 1 . . . . Fabricator Hacks . | . . . . . . Repair Station Hacks . | . . . . . . Recycling Unit Hacks . | . . . . . . Scanalyzer . | . . . . . . Garrison Access Hacks . | . . . . . . Unauthorized Hacks . | . . . . . . Terminals . | . . . . . . Fabricators . | . . . . . . Repair Stations . | . . . . . . Recycling Units . | . . . . . . Scanalyzers . | . . . . . . Garrison Access . | . . . . . . Data Cores Recovered . | . . . . . . Used . | . . . . . . Hacking Detections 1 | . 1 . . . . Full Trace Events 1 | . 1 . . . . Feedback Events 1 | . 1 . . . . Corruption 1 | . 1 . . . . Feedback Blocked . | . . . . . . Robot Schematics Acquired . | . . . . . . Robots Built . | . . . . . . Authchips . | . . . . . . Time . | . . . . . . Total Robot Build Rating . | . . . . . . Part Schematics Acquired . | . . . . . . Parts Built . | . . . . . . Authchips . | . . . . . . Time . | . . . . . . Total Part Build Rating . | . . . . . . Parts Repaired . | . . . . . . Time . | . . . . . . Parts Recycled . | . . . . . . Recycled Matter . | . . . . . . Retrieved Matter . | . . . . . . Retrieved Components . | . . . . . . Parts Scanalyzed . | . . . . . . Part Schematics Acquired . | . . . . . . Parts Damaged . | . . . . . . Bothacking | -11 -10 -10 -10 -9 -8 ------------ Run | Yrd Mat Min Exi Min Mat Used RIF Installer . | . . . . . . Robots Hacked . | . . . . . . Non-combat . | . . . . . . Combat . | . . . . . . Robot Hacks Applied . | . . . . . . Relay Couplers Released . | . . . . . . Fabnet Peak Effective % . | . . . . . . Robots Rewired . | . . . . . . Allies Hacked . | . . . . . . Hacks Repelled . | . . . . . . Allies | -11 -10 -10 -10 -9 -8 -------- Run | Yrd Mat Min Exi Min Mat Total Allies . | . . . . . . Largest Group . | . . . . . . Highest-Rated Group . | . . . . . . Highest-Rated Ally . | . . . . . . Total Orders . | . . . . . . Ally Attacks . | . . . . . . Total Damage . | . . . . . . Kills . | . . . . . . Allies Corrupted . | . . . . . . Allies Melted . | . . . . . . Intel | -11 -10 -10 -10 -9 -8 ------- Run | Yrd Mat Min Exi Min Mat Active Infowar (turns) 1683 | 26 282 240 379 452 304 Seismic 1683 | 26 282 240 379 452 304 Robot Analysis Total . | . . . . . . Derelict Logs Recovered 2 | . . 1 . 1 . Drone Launches . | . . . . . . Drone Recoveries . | . . . . . . Exploration | -11 -10 -10 -10 -9 -8 ------------- Run | Yrd Mat Min Exi Min Mat Turns Passed 1809 | 135 299 240 379 452 304 Spaces Moved 978 | 67 153 150 237 231 140 Core 11 | 10 1 . . . . Treads 688 | 57 152 150 237 92 . Legs 279 | . . . . 139 140 Wheels . | . . . . . . Hover . | . . . . . . Flight . | . . . . . . Fastest Speed 50 | 50 160 160 160 160 120 Average Speed 159 | 143 160 160 160 178 133 Slowest Speed 200 | 160 200 160 160 190 190 Overloaded Moves . | . . . . . . Propulsion Burnouts . | . . . . . . Robots Hopped . | . . . . . . Potential Cave-ins . | . . . . . . Cave-ins Triggered . | . . . . . . Exploration Rate (%) 36 | 6 34 34 60 66 16 Regions Visited 5 Branch Regions 3 Pre-discovered Areas 1 | . . . . 1 . Known Exits Taken . | . . . . . . Unknown Exits Taken 5 | 1 1 1 1 1 . Scrap Searched 2 | . . 1 . 1 . Spaces Dug . | . . . . . . Terrain Destroyed 57 | . . . . . 57 Melee . | . . . . . . Projectile . | . . . . . . AOE 57 | . . . . . 57 Terrain Rammed . | . . . . . . Walls Destroyed . | . . . . . . Machines Disabled . | . . . . . . Actions | -11 -10 -10 -10 -9 -8 --------- Run | Yrd Mat Min Exi Min Mat Total 1133 | 94 177 150 238 254 220 Wait 49 | . . . . 5 44 Move 973 | 66 152 149 236 230 140 Hop . | . . . . . . Pick Up 32 | 15 2 1 . 4 10 Fast Attach 5 | . 5 . . . . Attach 13 | 7 1 . . 1 4 Detach . | . . . . . . Swap 6 | . 1 . 1 2 2 Drop 6 | . 2 . 1 2 1 Fire 48 | 6 14 . . 10 18 Melee . | . . . . . . Ram . | . . . . . . Kick 1 | . . . . . 1 Crush . | . . . . . . Escape Stasis . | . . . . . . Rewire . | . . . . . . Trap . | . . . . . . Miscellaneous . | . . . . . . Route ------- -11/Scrapyard -10/Materials -10/Mines -10/Exiles -9/Mines -8/Materials (discovered 2 exits: Fac / Sto) History --------- Turn | Location | Event 5 | -11/Scrapyard | Discovered new exit (range 15) 136 | -11/Scrapyard | Entered Materials 308 | -10/Materials | Build established: Mutant 367 | -10/Materials | Discovered new exit (range 16) 435 | -10/Materials | Entered Mines 455 | -10/Mines | Learned 8 Materials zone layouts 481 | -10/Mines | Met a Derelict bent on vengeance 641 | -10/Mines | Deemed a non-threat by the Exiles lab entrance 641 | -10/Mines | Discovered new exit (range 5) 675 | -10/Mines | Entered Exiles 675 | -10/Exiles | Found Exiles lab abandoned 1019 | -10/Exiles | Discovered new exit (range 10) 1054 | -10/Exiles | Entered Mines 1335 | -9/Mines | Learned location of Zion (-7) 1446 | -9/Mines | Assembled infested the area 1451 | -9/Mines | Assisted by a Guerilla fighting off Assembled 1485 | -9/Mines | Discovered new exit (range 10) 1506 | -9/Mines | Entered Materials 1506 | -8/Materials | Evolved 4 slots: Propulsion x2, Utility x2 1507 | -8/Materials | Identified exit to Storage 1507 | -8/Materials | Identified exit to Factory 1810 | -8/Materials | Self-destructed Last Messages --------------- 01784_ U-05 Engineer lays Concrete. 01785_ Acquired 3 matter. 01785_ U-05 Engineer lays Concrete. 01786_ U-05 Engineer builds a Wall. 01791_ U-05 Engineer lays Concrete. 01797_ The unstable cave ceiling collapses. 01797_ U-05 Engineer lays Concrete. 01797_ R-06 Scavenger collects Corrupted Aluminum Leg. 01798_ U-05 Engineer lays Concrete. 01800_ U-05 Engineer builds a Wall. 01801_ U-05 Engineer lays Concrete. 01802_ Kicked U-05 Engineer. 01802_ R-06 Scavenger collects Corrupted Wheel. 01803_ U-05 Engineer sends out distress signal. 01803_ U-05 Engineer lays Concrete. 01804_ U-05 Engineer builds a Wall. 01805_ R-06 Scavenger collects Corrupted Wheel. 01806_ U-05 Engineer builds a Wall. 01809_ K-01 Serf collects debris. 01810_ Aluminum Leg destroyed. Map ----- +----------------------------------------------------+ | ??????# [*#% # | | ???????## # """ # | | ???????# # """ # | | ????????# ] / """ # | | ????????# ! ! # """ # | | ????????# ! ? =*# """ # | | ????????##??????# *# # | | ????????????????# #! "###### | | ?????????????????# ="#????? | | ??????????????#### ="#????? | | ??????????????# """""" #%="#????? | | ??????????????# """""""* ! #????? | | ??????????????# """""""= !%==#????? | | ??????????????# """"""%= #????? | | ??????????????# """"""" # #????? | | ??????????##### "#% ####### | | ??????????# # ## #= |# | | ??????????# ### ## # # | | ??????????# #?#####+###### # """ # | | ??????????# #?????# # + """ # | | ???????############ """# ## """ # | | ???????# =## / R"# ## """ # | | ???????# ## | """# ## """ # | | ???????# ## # ## # | | ???????# """ """ ######k## ## # | | ???????# """ """ /xu g@ ## # | | ???????# """ """ ###### ##### # | | ???????# #????# #???# # | | ???????# = #????# #???####### | | ???????#####+########## #######???? | | ????????# #???? | | ????????# #???? | | ????????# #???? | | ????????# ##### ###+#######? | | ????????# #???# # #? | | ????????# #???#!! !!!# #? | | ????????# #???#!!!!!!# #? | | #???????# ????######## #? | | #???????# ???????????# """ #? | | #???????# ???????????# """ "Y" #? | | ######### ???????????# """ """ #? | | ????????????# #? | | ????????????#########?#? | | ???????????????????????? | | ######### ???????????????????????? | | ????????# ????????????????????????? | | ????????# ????????????????????????? | | ????????# ????????????????????????? | | ????????# ????????????????????????? | | ######??# ????????????????????????? | +----------------------------------------------------+ Best States ------------- Heat Dissipation 31 Energy Generation 10 Energy Capacity 250 Matter Stores 300 Matter Capacity 300 Sight Range 16 Terrain Scan Density 10 Armor Coverage 150 Evasion (%) 55 Targeting Accuracy 6 Recoil Reduction 2 Item Schematics ----------------- None Robot Schematics ------------------ None Fabricated ------------ Nothing Repaired ---------- Nothing Alien Tech Used ----------------- None Achievements -------------- None Challenges ------------ None Game ------ Seed GuidedMyomerKinecellerator Manual? 0 Play Time 00:14:18 Cumulative 35.2 hours Start 2025.05.30 @ 20:12:02 End 2025.05.30 @ 20:24:31 Sessions 1 Manual Loads 0 Difficulty Rogue Special Mode None Game No. 53 Rogue 53 Adventurer 0 Explorer 0 Win Type - Total 0 Types 0/0/0/0/0/0/0/0/0/0 Lore% 30 Gallery% 34 Achievement% 29 Wizard Run 0 Options --------- Layout 0 ASCII 0 Keyboard 0 Movement Mouse Keybinds 0 Fullscreen 1 Font 18/SmallcapsGlow Map View 76x50 Zoom Use 0% Tactical HUD 1 Map Filters NONE Filters NONE Steam 1 RUN: 751b4f7d-e081-4af0-8d53-9e391d51ae71